bitfinex-derivatives/quotes_SOLF0:USTF0_20250131
["timestamp","ask_amount","ask_price","bid_price","bid_amount"]
[1738291551507,4.209,237.58,237.52,4.2097]
[1738291552809,0.02952228,237.57,237.53,0.02994153]
[1738291553302,4.23872228,237.57,237.53,0.02994153]
[1738291553811,0.02952228,237.57,237.53,0.02994153]
[1738291555910,0.02952228,237.57,237.54,11.5114988]
[1738291557206,0.02952228,237.57,237.55,4.2094]
[1738291558111,0.02952228,237.57,237.56,4.2092]
[1738291558803,4.2092,237.56,237.53,0.02994153]
[1738291559002,0.02952228,237.57,237.53,0.02994153]
[1738291560710,4.2094,237.55,237.53,0.02994153]
[1738291561510,4.2105,237.49,237.42,4.2115]
[1738291561703,11.5114988,237.56,237.41,11.5114988]
[1738291561910,11.5114988,237.56,237.43,3.19464805]
[1738291562112,4.21,237.52,237.44,4.2113]
[1738291562411,4.21,237.52,237.45,3.19464805]
[1738291562604,11.5114988,237.56,237.45,3.19464805]
[1738291562605,0.03189013,237.5,237.46,0.02920501]
[1738291562803,4.2107,237.48,237.46,0.02920501]
[1738291563210,0.03189013,237.5,237.46,0.02920501]
[1738291564112,4.2105,237.49,237.46,0.02920501]
[1738291565912,4.2107,237.48,237.46,0.02920501]
[1738291568416,0.03189013,237.5,237.46,0.02920501]
[1738291568715,4.2108,237.47,237.46,0.02920501]
[1738291569114,0.03189013,237.5,237.46,0.02920501]
[1738291569314,4.2107,237.48,237.46,0.02920501]
[1738291569515,0.03189013,237.5,237.46,0.02920501]
[1738291570816,4.2108,237.48,237.46,0.02920501]
[1738291571819,4.2108,237.47,237.46,0.02920501]
[1738291576019,4.2106,237.49,237.46,0.02920501]
[1738291576418,0.03189013,237.5,237.47,3.21701671]
[1738291576622,4.2106,237.48,237.47,3.21701671]
[1738291577011,0.03189013,237.5,237.46,0.02920501]
[1738291577219,4.2108,237.47,237.46,0.02920501]
[1738291577721,4.2105,237.49,237.46,3.24958497]
[1738291578222,4.2105,237.49,237.47,3.22037996]
[1738291578523,4.2106,237.48,237.47,3.22037996]
[1738291579727,4.2106,237.48,237.47,1.02227996]
[1738291580923,11.54338893,237.5,237.46,0.02920501]
[1738291580924,4.2108,237.47,237.46,0.02920501]
[1738291581124,15.7222988,237.47,237.46,0.02920501]
[1738291582417,4.2121,237.4,237.34,1.3592]
[1738291582822,2.773,237.46,237.34,1.3592]
[1738291583017,4.2122,237.39,237.34,1.3592]
[1738291583627,4.24046734,237.39,237.35,4.2129]
[1738291584924,4.24046734,237.39,237.34,1.38619982]
[1738291585220,0.02826734,237.39,237.34,0.02699982]
[1738291586229,4.2126,237.37,237.34,0.02699982]
[1738291587530,4.24066734,237.39,237.34,0.02699982]
[1738291590130,0.02826734,237.39,237.34,0.02699982]
[1738291591029,0.02826734,237.39,237.35,4.2129]
[1738291592327,0.02826734,237.39,237.34,0.02699982]
[1738291592531,0.02826734,237.39,237.36,11.5114988]
[1738291592934,0.02826734,237.39,237.38,4.2124]
[1738291593434,4.2106,237.49,237.4,4.2119]
[1738291593630,11.5114988,237.51,237.36,11.5114988]
[1738291594632,0.0294984,237.46,237.41,4.240849]
[1738291596636,0.0294984,237.46,237.41,0.029049]
[1738291596836,0.0294984,237.46,237.42,4.2117]
[1738291597538,4.2405984,237.46,237.41,0.029049]
[1738291597737,0.0294984,237.46,237.41,0.029049]
[1738291598138,4.2117,237.42,237.41,0.029049]
[1738291608543,11.57115849,237.42,237.41,0.029049]
[1738291621855,7.35945849,237.42,237.3,4.2138]
[1738291622152,7.35945849,237.42,237.27,28.15100937]
[1738291622153,7.35945849,237.31,237.27,9.65680217]
[1738291622456,7.35945849,237.31,237.23,7.35945849]
[1738291623048,4.2138,237.3,237.26,150.71732578]
[1738291623545,4.2138,237.3,237.26,4.24358913]
[1738291623750,4.2138,237.3,237.26,0.02908913]
[1738291626454,0.03055375,237.31,237.26,0.02908913]
[1738291627150,4.2139,237.3,237.26,0.02908913]
[1738291629255,7.39001224,237.31,237.26,0.02908913]
[1738291629450,7.35945849,237.29,237.26,0.02908913]
[1738291629955,4.2143,237.27,237.26,0.02908913]
[1738291646963,11.57375849,237.27,237.26,0.02908913]
[1738291655070,7.35945849,237.27,237.16,1.3212]
[1738291655263,7.35945849,237.2,237.12,2.7819]
[1738291656168,7.35945849,237.2,237.13,4.2167]
[1738291656369,0.03171653,237.18,237.14,0.02870211]
[1738291656868,4.24771653,237.18,237.14,4.24530211]
[1738291657569,4.24771653,237.18,237.14,0.02870211]
[1738291659071,0.03171653,237.18,237.14,0.02870211]
[1738291659370,4.2165,237.15,237.14,0.02870211]
[1738291661270,7.35945849,237.16,237.14,0.02870211]
[1738291661475,7.39117502,237.18,237.14,0.02870211]
[1738291662869,0.03171653,237.18,237.14,7.3881606]
[1738291663269,0.03171653,237.18,237.14,11.6047606]
[1738291663471,0.03171653,237.18,237.14,7.3881606]
[1738291663975,0.03171653,237.18,237.14,0.02870211]
[1738291664171,4.2163,237.17,237.14,0.02870211]
[1738291668879,0.03171653,237.18,237.14,0.02870211]
[1738291669077,0.03171653,237.18,237.15,4.2164]
[1738291669277,0.03171653,237.18,237.14,7.3881606]
[1738291669574,0.03171653,237.18,237.17,4.2161]
[1738291671778,0.03171653,237.18,237.14,11.6046606]
[1738291672375,0.03171653,237.18,237.15,4.2165]
[1738291675479,0.03171653,237.18,237.14,7.3881606]
[1738291676185,0.03171653,237.18,237.16,11.57575849]
[1738291677190,0.03171653,237.18,237.16,4.2163]
[1738291678090,0.03171653,237.18,237.14,11.6046606]
[1738291678585,0.03171653,237.18,237.14,7.3881606]
[1738291679293,0.03171653,237.18,237.14,11.6047606]
[1738291679987,0.03171653,237.18,237.14,0.02870211]
[1738291680187,7.39117502,237.18,237.14,0.02870211]
[1738291681092,4.2162,237.17,237.14,0.02870211]
[1738291681297,7.39117502,237.18,237.14,0.02870211]
[1738291681488,0.03171653,237.18,237.14,0.02870211]
[1738291681889,4.24781653,237.18,237.14,0.02870211]
[1738291682393,4.2161,237.17,237.14,0.02870211]
[1738291682894,4.2163,237.16,237.14,0.02870211]
[1738291683593,4.2165,237.15,237.14,0.02870211]
[1738291690098,4.2177,237.08,237.04,322.24222063]
[1738291690399,11.57715849,237.08,237.04,322.24222063]
[1738291690993,4.2175,237.09,237.04,326.46062063]
[1738291691199,0.03055838,237.08,237.04,326.48838116]
[1738291692101,0.03055838,237.08,237.04,4.24616053]
[1738291692997,4.24825838,237.08,237.04,0.02776053]
[1738291693296,11.60771687,237.08,237.04,0.02776053]
[1738291693497,4.218,237.07,237.04,0.02776053]
[1738291696500,7.39001687,237.08,237.04,0.02776053]
[1738291696703,11.60771687,237.08,237.04,0.02776053]
[1738291696994,7.39001687,237.08,237.04,0.02776053]
[1738291698197,4.2179,237.07,237.04,0.02776053]
[1738291699506,4.2183,237.05,237.04,0.02776053]
[1738291699704,7.35945849,237.06,237.04,0.02776053]
[1738291700604,7.39001687,237.08,237.04,0.02776053]
[1738291700808,0.03055838,237.08,237.04,0.02776053]
[1738291701304,4.2179,237.07,237.04,0.02776053]
[1738291707412,7.39001687,237.08,237.04,4.24616053]
[1738291707806,0.03055838,237.08,237.04,4.24616053]
[1738291710513,4.24825838,237.08,237.04,4.24616053]
[1738291710811,7.35945849,237.06,237.04,0.02776053]
[1738291711016,7.39001687,237.08,237.04,0.02776053]
[1738291711313,4.2179,237.07,237.04,0.02776053]
[1738291712917,7.39001687,237.08,237.04,0.02776053]
[1738291713215,11.57765849,237.06,237.04,0.02776053]
[1738291715112,7.35945849,237.06,237.04,0.02776053]
[1738291716417,4.2179,237.07,237.04,0.02776053]
[1738291717716,0.03055838,237.08,237.04,0.02776053]
[1738291718217,7.35945849,237.06,237.04,0.02776053]
[1738291718523,7.35945849,237.06,236.95,146.47373665]
[1738291718718,7.35945849,237.0,236.95,146.47373665]
[1738291719120,7.35945849,237.02,236.95,150.69373665]
[1738291719422,7.35945849,237.02,236.96,0.03045013]
[1738291719423,0.03225485,237.01,236.96,0.03045013]
[1738291720224,0.03225485,237.01,236.97,4.2195]
[1738291721022,0.03225485,237.01,236.98,4.2195]
[1738291721619,0.03225485,237.01,236.96,7.38990862]
[1738291721815,0.03225485,237.01,236.96,11.60960862]
[1738291722323,0.03225485,237.01,236.97,4.2196]
[1738291725726,0.03225485,237.01,236.96,0.03045013]
[1738291726423,0.03225485,237.01,236.97,4.2197]
[1738291728230,7.35945849,236.98,236.96,0.03045013]
[1738291729325,4.2197,236.97,236.96,0.03045013]
[1738291733430,7.35945849,236.98,236.96,0.03045013]
[1738291733632,11.57905849,236.98,236.96,0.03045013]
[1738291734431,7.35945849,236.98,236.96,0.03045013]
[1738291735330,11.57895849,236.98,236.96,0.03045013]
[1738291736827,7.35945849,236.98,236.96,0.03045013]
[1738291737233,11.57875849,237.0,236.96,0.03045013]
[1738291737528,7.35945849,237.0,236.96,0.03045013]
[1738291737732,0.03225485,237.01,236.96,0.03045013]
[1738291738834,0.03225485,237.01,236.97,4.2196]
[1738291739632,7.35945849,237.0,236.97,4.2196]
[1738291739834,0.03225485,237.01,236.96,0.03045013]
[1738291740036,0.03225485,237.01,236.98,4.2194]
[1738291740336,0.03225485,237.01,236.96,0.03045013]
[1738291740739,0.03225485,237.01,236.99,4.2191]
[1738291740935,0.03225485,237.01,236.96,0.03045013]
[1738291742036,0.03225485,237.01,236.98,4.2195]
[1738291743335,0.03225485,237.01,236.96,0.03045013]
[1738291743546,0.03225485,237.01,236.99,4.2193]
[1738291745335,0.03225485,237.01,236.98,4.2195]
[1738291746845,7.35945849,237.0,236.96,0.03045013]
[1738291747135,7.35945849,236.98,236.96,0.03045013]
[1738291749137,11.57895849,236.98,236.96,0.03045013]
[1738291749342,7.35945849,236.98,236.96,0.03045013]
[1738291749745,4.2197,236.97,236.96,0.03045013]
[1738291749935,7.35945849,236.98,236.89,146.47373665]
[1738291750137,7.35945849,236.92,236.89,146.47373665]
[1738291750441,7.35945849,236.92,236.88,146.47373665]
[1738291751043,7.39175907,236.92,236.88,146.50389653]
[1738291751246,7.39175907,236.92,236.88,150.72509653]
[1738291751848,7.39175907,236.92,236.89,4.2211]
[1738291754148,0.03230058,236.92,236.89,4.2211]
[1738291755148,0.03230058,236.92,236.91,4.2207]
[1738291755348,0.03230058,236.92,236.88,7.38961837]
[1738291756351,0.03230058,236.92,236.9,4.2209]
[1738291759953,0.03230058,236.92,236.88,4.25125988]
[1738291760145,0.03230058,236.92,236.88,0.03015988]
[1738291761252,0.03230058,236.92,236.89,4.2211]
[1738291762152,7.39175907,236.92,236.88,0.03015988]
[1738291762348,7.35945849,236.9,236.88,0.03015988]
[1738291764355,7.39175907,236.92,236.88,0.03015988]
[1738291767851,4.2208,236.91,236.88,0.03015988]
[1738291769557,7.39175907,236.92,236.88,0.03015988]
[1738291770761,11.58045849,236.9,236.88,0.03015988]
[1738291772657,7.35945849,236.9,236.88,0.03015988]
[1738291774754,11.61235907,236.92,236.88,0.03015988]
[1738291775058,7.39175907,236.92,236.88,0.03015988]
[1738291776456,0.03230058,236.92,236.88,0.03015988]
[1738291777156,0.03230058,236.92,236.91,4.2207]
[1738291781154,7.39175907,236.92,236.88,0.03015988]
[1738291781358,7.35945849,236.9,236.88,0.03015988]
[1738291782461,0.03230058,236.92,236.89,4.2211]
[1738291782763,0.03230058,236.92,236.88,0.03015988]
[1738291783663,0.03230058,236.92,236.91,4.2207]
[1738291784467,0.03230058,236.92,236.91,11.58015849]
[1738291786567,0.03230058,236.92,236.91,4.2207]
[1738291787468,0.03230058,236.92,236.91,11.58015849]
[1738291789577,0.03230058,236.92,236.91,4.2207]
[1738291789769,0.03230058,236.92,236.9,146.47373665]
[1738291789970,0.03230058,236.92,236.91,7.35945849]
[1738291790465,0.03230058,236.92,236.91,11.58015849]
[1738291795173,0.03230058,236.92,236.91,21.2564932]
[1738291798673,0.03230058,236.92,236.91,11.58015849]
[1738291805178,0.03230058,236.92,236.91,21.25124826]
[1738291805875,5.8e-07,236.92,236.91,21.25124826]
[1738291806075,7.35945849,237.07,236.98,4.2194]
[1738291806373,7.35945849,237.07,236.98,7.35945849]
[1738291806571,7.35945849,237.07,237.0,4.2191]
[1738291807181,0.03210563,237.06,237.01,0.02698458]
[1738291808580,7.35945849,237.05,237.01,0.02698458]
[1738291808780,7.35945849,237.03,237.01,0.02698458]
[1738291810084,4.2188,237.02,237.01,0.02698458]
[1738291811385,11.57805849,237.03,237.01,0.02698458]
[1738291811586,7.35945849,237.05,237.01,0.02698458]
[1738291815479,11.57775849,237.05,237.01,0.02698458]
[1738291816589,7.35945849,237.05,237.01,0.02698458]
[1738291816888,0.03210563,237.06,237.01,4.24598458]
[1738291817190,0.03210563,237.06,237.01,0.02698458]
[1738291818886,4.25020563,237.06,237.01,0.02698458]
[1738291819394,4.25020563,237.06,237.01,4.24588458]
[1738291819890,0.03210563,237.06,237.02,4.2187]
[1738291820892,4.25020563,237.06,237.01,4.24588458]
[1738291821492,7.35945849,237.04,237.01,0.02698458]
[1738291822291,4.2186,237.03,237.01,0.02698458]
[1738291823091,7.35945849,237.04,237.01,0.02698458]
[1738291823296,7.35945849,237.04,236.94,153.83319514]
[1738291823297,7.35945849,237.02,236.94,146.47373665]
[1738291823591,7.35945849,237.0,236.94,146.47373665]
[1738291823792,7.35945849,237.0,236.94,150.69393665]
[1738291823989,7.35945849,237.0,236.94,4.2202]
[1738291824193,7.35945849,237.0,236.92,153.83319514]
[1738291824493,0.02873003,236.98,236.94,0.02711594]
[1738291833401,0.02873003,236.98,236.94,4.24731594]
[1738291834810,0.02873003,236.98,236.94,0.02711594]
[1738291835011,4.24833003,236.98,236.94,0.02711594]
[1738291835211,7.38818852,236.98,236.94,0.02711594]
[1738291835413,4.22,236.95,236.94,0.02711594]
[1738291836209,7.35945849,236.96,236.94,0.02711594]
[1738291837108,11.57945849,236.96,236.94,0.02711594]
[1738291837410,7.35945849,236.96,236.94,0.02711594]
[1738291837803,4.22,236.95,236.94,0.02711594]
[1738291839507,11.57935849,236.96,236.94,0.02711594]
[1738291840000,7.35945849,236.96,236.94,0.02711594]
[1738291840511,4.2198,236.97,236.94,0.02711594]
[1738291840710,0.02873003,236.98,236.94,0.02711594]
[1738291841210,0.02873003,236.98,236.94,7.38657443]
[1738291841408,0.02873003,236.98,236.96,7.35945849]
[1738291842212,0.02873003,236.98,236.97,4.2197]
[1738291843114,10.20475849,237.12,237.03,4.2185]
[1738291843313,10.20475849,237.12,237.04,7.35945849]
[1738291843810,8.74035849,237.12,237.04,7.35945849]
[1738291844110,8.74035849,237.12,236.95,4.2732]
[1738291844111,0.03163834,237.1,237.06,0.02780804]
[1738291844316,0.03163834,237.1,236.95,4.2732]
[1738291844317,0.03163834,237.1,237.08,7.35945849]
[1738291844612,7.35945849,237.16,237.08,7.35945849]
[1738291844817,0.02896156,237.11,237.09,4.2175]
[1738291845015,7.35945849,237.2,237.07,1.4376]
[1738291845206,7.35945849,237.2,237.12,7.35945849]
[1738291845410,0.02674258,237.18,237.12,7.35945849]
[1738291845715,0.02674258,237.18,237.14,7.38753295]
[1738291846515,0.02674258,237.18,237.16,7.35945849]
[1738291847014,0.02674258,237.18,237.16,11.57575849]
[1738291849215,0.02674258,237.18,237.16,7.35945849]
[1738291852519,0.02674258,237.18,237.14,7.38753295]
[1738291853615,0.02674258,237.18,237.14,11.60413295]
[1738291853821,0.02674258,237.18,237.14,7.38753295]
[1738291855019,0.02674258,237.18,237.16,7.35945849]
[1738291858023,0.02674258,237.18,237.15,4.2165]
[1738291859620,0.02674258,237.18,237.14,7.38753295]
[1738291859825,0.02674258,237.18,237.14,0.02807446]
[1738291861023,0.02674258,237.18,237.16,7.35945849]
[1738291862225,0.02674258,237.18,237.17,4.2161]
[1738291867932,10.12265849,237.32,237.16,7.35945849]
[1738291868131,10.12265849,237.32,237.24,7.35945849]
[1738291868322,7.35945849,237.34,237.24,7.35945849]
[1738291868729,4.2134,237.33,237.25,4.2146]
[1738291868925,4.2134,237.33,237.24,7.35945849]
[1738291868926,7.35945849,237.26,237.17,7.35945849]
[1738291869131,7.35945849,237.24,237.15,7.35945849]
[1738291869435,0.02677466,237.22,237.19,0.02725264]
[1738291871435,7.35945849,237.2,237.19,0.02725264]
[1738291872237,11.57505849,237.2,237.19,0.02725264]
[1738291873140,7.35945849,237.2,237.11,11.57645849]
[1738291873338,7.35945849,237.18,237.11,11.57645849]
[1738291874143,11.57545849,237.18,237.11,7.35945849]
[1738291874344,0.03020279,237.17,237.12,0.02719044]
[1738291874941,7.35945849,237.16,237.12,0.02719044]
[1738291876043,0.03020279,237.17,237.12,0.02719044]
[1738291877849,4.2165,237.15,237.12,0.02719044]
[1738291878048,7.35945849,237.16,237.12,0.02719044]
[1738291878347,11.57575849,237.16,237.12,0.02719044]
[1738291878749,0.03020279,237.17,237.12,0.02719044]
[1738291879450,7.35945849,237.16,237.12,0.02719044]
[1738291880047,4.2165,237.15,237.12,0.02719044]
[1738291881252,7.35945849,237.16,237.12,0.02719044]
[1738291881551,11.57585849,237.16,237.12,0.02719044]
[1738291883155,7.35945849,237.16,237.12,0.02719044]
[1738291883352,4.2168,237.13,237.12,0.02719044]
[1738291883747,7.35945849,237.14,237.12,0.02719044]
[1738291884954,4.2168,237.13,237.12,0.02719044]
[1738291888653,7.35945849,237.16,237.12,0.02719044]
[1738291888854,4.24650279,237.17,237.12,0.02719044]
[1738291889558,4.2163,237.16,237.12,0.02719044]
[1738291889954,7.35945849,237.14,237.12,0.02719044]
[1738291890556,4.2168,237.13,237.12,0.02719044]
[1738291900373,7.35945849,237.14,237.12,0.02719044]
[1738291900770,7.35945849,237.16,237.12,0.02719044]
[1738291902674,0.03020279,237.17,237.14,4.2165]
[1738291902873,0.03020279,237.17,237.14,7.35945849]
[1738291903372,0.03020279,237.17,237.15,4.2165]
[1738291906073,0.03020279,237.17,237.16,4.2163]
[1738291907074,0.03020279,237.17,237.16,11.57575849]
[1738291908569,4.2145,237.27,237.16,7.35945849]
[1738291908773,4.2145,237.27,237.2,7.35945849]
[1738291909777,0.02693139,237.26,237.21,0.02751944]
[1738291910076,0.02693139,237.26,237.21,4.24291944]
[1738291910272,0.02693139,237.26,237.21,0.02751944]
[1738291911372,0.02693139,237.26,237.22,4.2151]
[1738291912577,0.02693139,237.26,237.21,0.02751944]
[1738291912779,0.02693139,237.26,237.23,4.215]
[1738291914887,0.02693139,237.26,237.21,0.02751944]
[1738291914888,0.02693139,237.26,237.22,7.35945849]
[1738291917082,0.02693139,237.26,237.24,7.35945849]
[1738291917680,0.02693139,237.26,237.25,4.2147]
[1738291922488,0.02693139,237.26,237.24,11.57435849]
[1738291922786,0.02693139,237.26,237.24,7.35945849]
[1738291923383,4.2091,237.57,237.46,4.2108]
[1738291923588,7.35945849,237.58,237.48,7.35945849]
[1738291923792,7.35945849,237.54,237.46,7.35945849]
[1738291924082,7.35945849,237.54,237.44,7.35945849]
[1738291924681,0.02705554,237.51,237.47,0.03107296]
[1738291924878,0.02705554,237.51,237.48,7.35945849]
[1738291925082,0.02705554,237.51,237.5,7.35945849]
[1738291926596,0.02705554,237.51,237.5,11.48090912]
[1738291927297,0.02705554,237.51,237.47,11.51198208]
[1738291929798,0.02705554,237.51,237.47,15.72268208]
[1738291930495,0.02705554,237.51,237.5,11.48090912]
[1738291930900,2.82,237.61,237.5,11.48090912]
[1738291931599,4.2085,237.6,237.51,4.2101]
[1738291932097,4.2094,237.55,237.53,0.03119847]
[1738291932301,4.2094,237.55,237.47,15.69160912]
[1738291932504,0.02812266,237.56,237.52,0.02729356]
[1738291932806,4.2096,237.54,237.52,0.02729356]
[1738291934206,4.2106,237.48,237.4,15.69280912]
[1738291935399,0.02840135,237.46,237.42,0.02729562]
[1738291935605,4.2108,237.47,237.42,0.02729562]
[1738291936106,0.02765281,237.46,237.42,0.02729562]
[1738291937410,4.2115,237.44,237.42,0.02729562]
[1738291941814,4.2115,237.43,237.42,0.02729562]
[1738291942713,4.2121,237.4,237.34,11.48090912]
[1738291942913,4.2121,237.4,237.34,15.69400912]
[1738291943112,4.2121,237.4,237.34,11.48090912]
[1738291943818,0.02703357,237.39,237.35,0.03206247]
[1738291948214,4.23923357,237.39,237.35,0.03206247]
[1738291950919,4.2125,237.38,237.35,0.03206247]
[1738291953530,0.02703357,237.39,237.37,11.48090912]
[1738291953722,0.02703357,237.39,237.38,4.2124]
[1738291953920,0.02703357,237.39,237.35,0.03206247]
[1738291954534,0.02703357,237.39,237.37,7.35750916]
[1738291960832,0.02703357,237.39,237.35,0.03206247]
[1738291961335,7.38454273,237.39,237.35,0.03206247]
[1738291962128,4.2127,237.36,237.35,0.03206247]
[1738291963236,4.2144,237.27,237.25,7.35750916]
[1738291963437,4.2144,237.27,237.24,146.47373665]
[1738291964430,4.2144,237.27,237.23,153.86227718]
[1738291964636,0.02697947,237.28,237.23,146.50476802]
[1738291966333,0.02697947,237.28,237.23,0.03103137]
[1738291969941,4.2144,237.27,237.23,0.03103137]
[1738291971041,0.02697947,237.28,237.23,0.03103137]
[1738291978144,0.02697947,237.28,237.26,4.2145]
[1738291978348,0.02697947,237.28,237.23,11.53988647]
[1738291979243,0.02697947,237.28,237.27,4.2143]
[1738291983452,0.02697947,237.28,237.25,4.2146]
[1738291983950,0.02697947,237.28,237.23,11.53988647]
[1738291984151,0.02697947,237.28,237.26,4.2145]
[1738291985353,0.02697947,237.28,237.25,7.3643513]
[1738291986146,0.02697947,237.28,237.25,11.5790513]
[1738291988655,0.02697947,237.28,237.25,7.3643513]
[1738291988852,0.02697947,237.28,237.26,4.2145]
[1738291989953,0.02697947,237.28,237.25,7.3643513]
[1738291990152,0.02697947,237.28,237.26,4.2145]
[1738291990550,0.02697947,237.28,237.27,11.5786513]
[1738291992758,7.3643513,237.53,237.27,215.0243513]
[1738291992959,7.3643513,237.53,237.46,7.3643513]
[1738291993357,7.3643513,237.56,237.48,7.3643513]
[1738291993557,7.3643513,237.56,237.46,7.3643513]
[1738291993756,7.3643513,237.54,237.46,7.3643513]
[1738291993957,0.0310542,237.53,237.49,0.02826925]
[1738291998963,0.0310542,237.53,237.49,4.23866925]
[1738292000764,0.0310542,237.53,237.5,4.2102]
[1738292003261,0.0310542,237.53,237.52,4.2099]
[1738292007775,0.0310542,237.53,237.5,7.3643513]
[1738292008063,0.0310542,237.53,237.5,11.5744513]
[1738292008261,0.0310542,237.53,237.5,4.2101]
[1738292008668,0.0310542,237.53,237.49,0.02826925]
[1738292009462,0.0310542,237.53,237.49,4.23866925]
[1738292010365,0.0310542,237.53,237.5,7.3643513]
[1738292011463,0.0310542,237.53,237.49,0.02826925]
[1738292013768,0.0310542,237.53,237.49,4.23866925]
[1738292016873,0.0310542,237.53,237.5,11.5745513]
[1738292019067,0.0310542,237.53,237.51,4.2101]
[1738292020279,0.0310542,237.53,237.52,4.2099]
[1738292022379,0.0310542,237.53,237.52,11.5742513]
[1738292026585,0.0310542,237.53,237.51,4.21]
[1738292026990,0.0310542,237.53,237.49,0.02826925]
[1738292029994,0.0310542,237.53,237.49,4.23866925]
[1738292030795,0.0310542,237.53,237.5,7.3643513]
[1738292031294,0.0310542,237.53,237.52,4.2099]
[1738292032992,0.0310542,237.53,237.49,0.02826925]
[1738292037197,4.2407542,237.53,237.49,0.02826925]
[1738292037694,0.0310542,237.53,237.49,0.02826925]
[1738292043107,4.21,237.52,237.49,0.02826925]
[1738292043599,7.3643513,237.51,237.49,0.02826925]
[1738292043805,7.3643513,237.51,237.44,150.68503665]
[1738292044002,7.3643513,237.49,237.44,150.68503665]
[1738292044203,7.3643513,237.49,237.44,4.2113]
[1738292044707,11.5748513,237.49,237.43,322.24222063]
[1738292044900,7.3643513,237.49,237.43,322.24222063]
[1738292045099,7.3643513,237.49,237.44,0.02903761]
[1738292046000,11.5749513,237.49,237.44,0.02903761]
[1738292047004,7.3643513,237.51,237.44,0.02903761]
[1738292048102,7.3643513,237.51,237.44,7.39338891]
[1738292048301,7.3643513,237.51,237.45,4.211]
[1738292048608,7.3643513,237.51,237.44,7.39338891]
[1738292048798,7.3643513,237.51,237.44,0.02903761]
[1738292049106,7.3643513,237.49,237.44,0.02903761]
[1738292050102,4.211,237.47,237.44,0.02903761]
[1738292051210,0.0268979,237.48,237.44,0.02903761]
[1738292051508,0.0268979,237.48,237.44,7.39338891]
[1738292052712,0.0268979,237.48,237.44,0.02903761]
[1738292055613,4.2376979,237.48,237.44,0.02903761]
[1738292055814,0.0268979,237.48,237.44,0.02903761]
[1738292057118,4.2108,237.47,237.44,0.02903761]
[1738292062921,7.3643513,237.47,237.44,0.02903761]
[1738292063221,7.3643513,237.45,237.44,0.02903761]
[1738292064220,11.5754513,237.45,237.44,0.02903761]
[1738292065622,4.2118,237.42,237.36,4.2127]
[1738292065823,7.3643513,237.42,237.36,4.2127]
[1738292066122,7.3643513,237.42,237.34,7.3643513]
[1738292066324,11.5765513,237.4,237.34,11.5772513]
[1738292066519,0.0274129,237.39,237.35,0.02880375]
[1738292067126,4.2396129,237.39,237.35,0.02880375]
[1738292068723,0.0274129,237.39,237.35,0.02880375]
[1738292075029,4.2396129,237.39,237.35,0.02880375]
[1738292078528,0.0274129,237.39,237.35,0.02880375]
[1738292079924,4.2397129,237.39,237.35,0.02880375]
[1738292085535,0.0274129,237.39,237.35,0.02880375]
[1738292092843,4.2095,237.55,237.48,4.2106]
[1738292093145,7.3643513,237.57,237.48,7.3643513]
[1738292093335,7.3643513,237.55,237.46,7.3643513]
[1738292094144,7.39386302,237.53,237.48,0.02828433]
[1738292098048,11.60356302,237.53,237.48,0.02828433]
[1738292098347,7.39386302,237.53,237.48,0.02828433]
[1738292099947,7.3643513,237.49,237.48,0.02828433]
[1738292100148,7.3643513,237.49,237.39,147.89203665]
[1738292100343,7.3643513,237.44,237.38,146.47373665]
[1738292100548,7.3643513,237.42,237.38,146.47373665]
[1738292101448,0.02846167,237.42,237.38,146.50320348]
[1738292102948,0.02846167,237.42,237.38,0.02946683]
[1738292103649,0.02846167,237.42,237.39,4.2122]
[1738292103944,0.02846167,237.42,237.4,4.212]
[1738292105353,0.02846167,237.42,237.38,4.24166683]
[1738292107754,0.02846167,237.42,237.38,7.39381813]
[1738292107954,0.02846167,237.42,237.39,4.2122]
[1738292109859,0.02846167,237.42,237.38,7.39381813]
[1738292110055,0.02846167,237.42,237.4,4.2119]
[1738292110558,0.02846167,237.42,237.41,4.2119]
[1738292114261,7.3643513,237.52,237.46,4.2109]
[1738292114864,4.2099,237.53,237.47,4.2107]
[1738292115358,0.02989654,237.52,237.48,0.02769851]
[1738292116064,0.02989654,237.52,237.48,4.23829851]
[1738292118664,0.02989654,237.52,237.48,7.39204981]
[1738292118866,0.02989654,237.52,237.51,4.2101]
[1738292119061,0.02989654,237.52,237.48,7.39204981]
[1738292120065,0.02989654,237.52,237.5,4.2102]
[1738292122968,0.02989654,237.52,237.48,7.39204981]
[1738292123167,0.02989654,237.52,237.51,4.2101]
[1738292132472,0.02989654,237.52,237.48,0.02769851]
[1738292133280,0.02989654,237.52,237.48,4.23829851]
[1738292142277,0.02989654,237.52,237.5,4.2103]
[1738292142474,0.02989654,237.52,237.49,7.3643513]
[1738292143383,0.02989654,237.52,237.51,4.2101]
[1738292145877,0.02989654,237.52,237.51,11.5744513]
[1738292156287,0.02989654,237.52,237.49,9.68141708]
[1738292156485,11.60414784,237.52,237.48,145.86085895]
[1738292157185,7.39424784,237.52,237.48,145.86085895]